bitfinex/quotes_ETHUSD_20250705
["timestamp","ask_amount","ask_price","bid_price","bid_amount"]
[1751715368866,0.37111225,2527.9,2527.8,12.10154267]
[1751715374179,0.37111225,2527.9,2527.8,12.10254267]
[1751715383025,0.001,2528.0,2527.9,3.95585268]
[1751715383332,0.37202764,2528.0,2527.9,3.95585268]
[1751715386830,0.37204126,2528.0,2527.9,3.95585268]
[1751715387350,0.37204126,2528.0,2527.9,5.68415074]
[1751715387702,0.37204126,2528.0,2527.9,5.88175074]
[1751715387902,0.37204126,2528.0,2527.9,5.84219222]
[1751715394234,0.37204126,2528.0,2527.9,15.84219222]
[1751715394434,0.001,2528.0,2527.9,24.59859222]
[1751715410564,0.001,2528.0,2527.9,25.39859222]
[1751715410926,0.001,2528.0,2527.9,24.59859222]
[1751715411131,0.001,2528.0,2527.9,23.78819222]
[1751715412057,0.001,2528.0,2527.9,15.84219222]
[1751715412263,0.001,2528.0,2527.9,23.78719222]
[1751715424754,0.001,2528.0,2527.9,24.58719222]
[1751715424958,0.001,2528.0,2527.9,23.78719222]
[1751715427758,0.001,2528.0,2527.9,23.78919222]
[1751715432987,0.001,2528.0,2527.9,24.58919222]
[1751715434599,0.001,2528.0,2527.9,23.78919222]
[1751715439100,0.001,2528.0,2527.9,24.58919222]
[1751715439277,0.001,2528.0,2527.9,23.78919222]
[1751715446298,0.001,2528.0,2527.9,30.57155708]
[1751715449596,0.001,2528.0,2527.9,25.10149222]
[1751715449786,0.001,2528.0,2527.9,17.15649222]
[1751715450018,0.001,2528.0,2527.9,25.10049222]
[1751715450778,0.001,2528.0,2527.9,23.78819222]
[1751715451004,0.001,2528.0,2527.9,22.09945268]
[1751715452708,0.001,2528.0,2527.9,22.89945268]
[1751715453006,0.001,2528.0,2527.9,22.09945268]
[1751715460606,0.001,2528.0,2527.9,0.002]
[1751715460809,0.65887476,2528.0,2527.9,0.002]
[1751715461009,1.88909215,2528.0,2527.9,0.002]
[1751715461184,1.88909215,2528.0,2527.9,7.946]
[1751715463204,1.88909215,2528.0,2527.9,0.002]
[1751715463407,1.88909215,2528.0,2527.9,7.946]
[1751715468424,1.51801739,2528.0,2527.9,7.946]
[1751715468627,1.88834109,2528.0,2527.9,7.946]
[1751715469122,1.88834117,2528.0,2527.9,7.946]
[1751715470825,1.88827548,2528.0,2527.9,7.946]
[1751715471015,1.88827559,2528.0,2527.9,7.946]
[1751715471210,1.51801739,2528.0,2527.9,7.946]
[1751715471422,1.88826693,2528.0,2527.9,7.946]
[1751715471918,1.88825241,2528.0,2527.9,7.946]
[1751715475541,1.88821473,2528.0,2527.9,7.946]
[1751715480638,1.88834284,2528.0,2527.9,7.946]
[1751715486745,1.60154284,2528.0,2527.9,7.946]
[1751715486950,0.56892545,2528.0,2527.9,7.946]
[1751715487628,0.56892545,2528.0,2527.9,11.90185268]
[1751715489147,0.56950232,2528.0,2527.9,7.946]
[1751715489450,0.56950232,2528.0,2527.9,11.90185268]
[1751715489628,0.56950232,2528.0,2527.9,7.946]
[1751715491648,0.56983077,2528.0,2527.9,7.946]
[1751715492716,0.56983077,2528.0,2527.9,0.002]
[1751715492917,0.56983077,2528.0,2527.9,7.947]
[1751715494545,0.56983077,2528.0,2527.9,11.90285268]
[1751715495247,0.56983077,2528.0,2527.9,7.947]
[1751715497055,0.56983077,2528.0,2527.9,11.90285268]
[1751715497354,0.56983077,2528.0,2527.9,7.947]
[1751715498046,0.56983077,2528.0,2527.9,11.90285268]
[1751715498243,0.56983077,2528.0,2527.9,7.947]
[1751715498643,0.56983077,2528.0,2527.9,0.002]
[1751715498846,0.56983077,2528.0,2527.9,7.946]
[1751715499357,0.56978403,2528.0,2527.9,7.946]
[1751715502854,0.56978403,2528.0,2527.9,11.90185268]
[1751715504663,0.56978403,2528.0,2527.9,7.946]
[1751715507067,0.56978403,2528.0,2527.9,11.90185268]
[1751715509179,0.37218403,2528.0,2527.9,14.31979585]
[1751715512460,0.001,2528.0,2527.9,14.31979585]
[1751715512667,0.37207023,2528.0,2527.9,14.31979585]
[1751715529001,0.37207023,2528.0,2527.9,13.56469585]
[1751715532399,0.65887023,2528.0,2527.9,0.002]
[1751715532901,0.65887023,2528.0,2527.9,7.945]
[1751715541201,0.37207023,2528.0,2527.9,7.945]
[1751715543011,0.37207023,2528.0,2527.9,11.90085268]
[1751715561927,0.37216078,2528.0,2527.9,11.90085268]
[1751715563827,0.37217688,2528.0,2527.9,11.90085268]
[1751715566804,0.37217688,2528.0,2527.9,14.40783711]
[1751715572929,0.37217688,2528.0,2527.9,12.72155268]
[1751715576840,0.001,2528.0,2527.9,12.72155268]
[1751715577035,0.3718819,2528.0,2527.9,12.72155268]
[1751715583352,0.3718819,2528.0,2527.9,13.27155268]
[1751715583752,0.3718819,2528.0,2527.9,14.07155268]
[1751715583958,0.3718819,2528.0,2527.9,15.89426711]
[1751715584452,0.001,2528.0,2527.9,15.09426711]
[1751715586687,0.001,2528.0,2527.9,25.09426711]
[1751715598788,0.001,2528.0,2527.9,25.89426711]
[1751715600576,0.0440937,2528.2,2528.1,4.50553973]
[1751715600777,0.2868,2528.1,2528.0,3.9556962]
[1751715601004,0.2868,2528.1,2528.0,11.8956962]
[1751715602573,0.64818511,2528.1,2528.0,11.8956962]
[1751715603027,0.64818641,2528.1,2528.0,11.8956962]
[1751715603917,0.0440937,2528.2,2528.0,11.8956962]
[1751715604111,0.0440937,2528.2,2528.1,3.95553973]
[1751715604291,0.40545395,2528.2,2528.1,3.95553973]
[1751715604490,0.0440937,2528.2,2528.1,3.95553973]
[1751715604697,0.40545395,2528.2,2528.1,3.95553973]
[1751715604901,0.0440937,2528.2,2528.1,3.95553973]
[1751715605224,0.40545395,2528.2,2528.1,3.95553973]
[1751715605730,0.0440937,2528.2,2528.1,3.95553973]
[1751715606033,0.40549756,2528.2,2528.1,3.95553973]
[1751715606216,0.0440937,2528.2,2528.1,3.95553973]
[1751715606432,0.40549756,2528.2,2528.1,3.95553973]
[1751715606620,0.0440937,2528.2,2528.1,3.99509512]
[1751715606814,0.40549756,2528.2,2528.1,3.95553973]
[1751715607698,0.0440937,2528.2,2528.1,3.99509512]
[1751715607900,0.40549756,2528.2,2528.1,3.99509512]
[1751715608102,0.40549756,2528.2,2528.1,3.95553973]
[1751715608321,0.0440937,2528.2,2528.1,3.95553973]
[1751715608523,0.40549756,2528.2,2528.1,3.95553973]
[1751715608939,0.41056398,2528.2,2528.1,3.95553973]
[1751715609119,0.0440937,2528.2,2528.1,3.95553973]
[1751715609324,0.41056398,2528.2,2528.1,3.95553973]
[1751715611722,0.41056398,2528.2,2528.1,3.99509512]
[1751715611914,0.41056398,2528.2,2528.1,5.68068425]
[1751715613250,0.41056398,2528.2,2528.1,5.64112886]
[1751715620851,0.40757934,2528.2,2528.1,5.64112886]
[1751715624137,0.40748926,2528.2,2528.1,5.64112886]
[1751715624634,0.40748926,2528.2,2528.1,3.95553973]
[1751715624835,0.40748926,2528.2,2528.1,11.89553973]
[1751715626776,0.4074332,2528.2,2528.1,11.89553973]
[1751715634478,0.6942332,2528.2,2528.1,7.94]
[1751715637882,0.6942332,2528.2,2528.0,3.957688]
[1751715638054,0.3308937,2528.2,2528.1,7.94]
[1751715638385,0.69843393,2528.2,2528.1,7.94]
[1751715638989,0.69843393,2528.2,2528.1,11.89553973]
[1751715639360,0.69843393,2528.2,2528.1,7.94]
[1751715640182,0.69843393,2528.2,2528.1,11.89553973]
[1751715640995,0.41163393,2528.2,2528.1,11.89553973]
[1751715642278,0.41163393,2528.2,2528.1,13.15711679]
[1751715642786,0.41163393,2528.2,2528.1,13.98911679]
[1751715650523,0.4131985,2528.2,2528.1,13.98911679]
[1751715655229,0.4131985,2528.2,2528.1,13.15711679]
[1751715656535,0.41318259,2528.2,2528.1,13.15711679]
[1751715660040,0.41318259,2528.2,2528.1,13.92491679]
[1751715660810,0.0440937,2528.2,2528.1,13.92491679]
[1751715662449,0.41231096,2528.2,2528.1,13.92491679]
[1751715666133,0.41079086,2528.2,2528.1,13.92491679]
[1751715666839,0.41079086,2528.2,2528.1,13.15711679]
[1751715668059,0.41085158,2528.2,2528.1,13.15711679]
[1751715673992,0.41045097,2528.2,2528.1,13.15711679]
[1751715674485,0.41045097,2528.2,2528.1,5.21711679]
[1751715674655,0.41045097,2528.2,2528.1,11.89453973]
[1751715677358,0.41045097,2528.2,2528.1,3.95553973]
[1751715677678,0.41045097,2528.2,2528.1,11.89453973]
[1751715679665,0.0440937,2528.2,2528.1,11.89453973]
[1751715679894,0.41162541,2528.2,2528.1,11.89453973]
[1751715680612,0.39934128,2528.2,2528.1,11.89453973]
[1751715682707,0.39934128,2528.2,2528.1,3.95553973]
[1751715682915,0.39934128,2528.2,2528.1,11.89453973]
[1751715684515,0.39929914,2528.2,2528.1,11.89453973]
[1751715687286,0.39929914,2528.2,2528.1,13.57584031]
[1751715690408,0.40011532,2528.2,2528.1,13.57584031]
[1751715691510,0.40111532,2528.2,2528.1,13.57584031]
[1751715695002,0.40111532,2528.2,2528.1,14.34554031]
[1751715699327,0.39818029,2528.2,2528.1,14.34554031]
[1751715703827,0.03280957,2528.2,2528.1,14.34554031]
[1751715708253,0.03280957,2528.2,2528.1,14.89554031]
[1751715709319,0.0430937,2528.7,2528.5,3.95491398]
[1751715709525,0.0430937,2528.7,2528.6,8.1356]
[1751715709725,0.40588934,2528.7,2528.6,12.09035757]
[1751715710558,0.0430937,2528.7,2528.6,12.09035757]
[1751715711265,0.0430937,2528.7,2528.6,12.64035757]
[1751715716473,0.0430937,2528.7,2528.6,17.38035757]
[1751715716661,0.0430937,2528.7,2528.6,20.26414442]
[1751715717159,0.0430937,2528.7,2528.6,19.71414442]
[1751715717544,0.0430937,2528.7,2528.6,11.77614442]
[1751715717774,0.0430937,2528.7,2528.6,19.71414442]
[1751715719264,0.0430937,2528.7,2528.6,8.89235757]
[1751715719465,0.0430937,2528.7,2528.6,16.82935757]
[1751715721840,0.0430937,2528.7,2528.6,22.71685757]
[1751715724778,0.0440937,2528.7,2528.6,23.26685757]
[1751715731096,0.0440937,2528.7,2528.6,28.00685757]
[1751715731398,0.0440937,2528.7,2528.6,31.28973028]
[1751715731900,0.0440937,2528.7,2528.6,31.48733028]
[1751715745717,0.0440937,2528.7,2528.6,32.28733028]
[1751715746314,0.0440937,2528.7,2528.6,24.35033028]
[1751715746515,0.0440937,2528.7,2528.6,32.28733028]
[1751715747129,0.0440937,2528.7,2528.6,27.54733028]
[1751715747489,1e-08,2528.7,2528.6,27.54733028]
[1751715756419,1e-08,2528.7,2528.6,27.84081524]
[1751715765940,1e-08,2528.7,2528.6,29.75881524]
[1751715766535,1e-08,2528.7,2528.6,28.09023028]
[1751715766842,1e-08,2528.7,2528.6,32.83023028]
[1751715767436,1e-08,2528.7,2528.6,33.38023028]
[1751715767637,1e-08,2528.7,2528.6,23.52523028]
[1751715767838,1e-08,2528.7,2528.6,24.89523028]
[1751715768041,1e-08,2528.7,2528.6,27.62735757]
[1751715770330,1e-08,2528.7,2528.6,22.88735757]
[1751715770834,1e-08,2528.7,2528.6,14.95235757]
[1751715771041,1e-08,2528.7,2528.6,22.88735757]
[1751715773141,1e-08,2528.7,2528.6,14.95235757]
[1751715773333,1e-08,2528.7,2528.6,22.88835757]
[1751715773530,1e-08,2528.7,2528.6,14.95235757]
[1751715773716,1e-08,2528.7,2528.6,22.88835757]
[1751715775043,1e-08,2528.7,2528.6,12.88835757]
[1751715777947,1e-08,2528.7,2528.6,4.95235757]
[1751715778153,1e-08,2528.7,2528.6,12.89235757]
[1751715784264,1e-08,2528.7,2528.6,4.95235757]
[1751715784567,1e-08,2528.7,2528.6,7.939]
[1751715784568,0.28680001,2528.7,2528.6,7.939]
[1751715784933,0.646983,2528.7,2528.6,7.939]
[1751715785125,1.12688045,2528.7,2528.6,7.939]
[1751715786267,0.2868,2528.6,2528.5,0.002]
[1751715786464,4.79934056,2528.6,2528.5,0.002]
[1751715786666,16.72034056,2528.6,2528.5,0.002]
[1751715787073,3.95538327,2528.2,2528.0,0.002]
[1751715787371,3.95538327,2528.2,2528.0,7.947]
[1751715787372,5.3934295,2528.2,2528.0,7.947]
[1751715788352,12.90754291,2528.2,2528.0,0.002]
[1751715788550,12.90754291,2528.2,2528.0,7.948]
[1751715788758,12.90754291,2528.2,2528.0,0.002]
[1751715792076,12.91612007,2528.2,2528.0,0.002]
[1751715792381,5.40200666,2528.2,2528.0,0.002]
[1751715795182,1.44662339,2528.2,2528.0,0.002]
[1751715795881,1.64422339,2528.2,2528.0,0.002]
[1751715797583,1.35742339,2528.2,2528.0,0.002]
[1751715800359,5.31280666,2528.2,2528.0,0.002]
[1751715800555,1.35742339,2528.2,2528.0,0.002]
[1751715803281,1.35754262,2528.2,2528.0,0.002]
[1751715804766,0.98866324,2528.2,2528.0,0.002]
[1751715805804,1.35769767,2528.2,2528.0,0.002]
[1751715806530,1.35773747,2528.2,2528.0,0.002]
[1751715807290,0.98866324,2528.2,2528.0,0.002]
[1751715808533,1.35787486,2528.2,2528.0,0.002]
[1751715808832,1.35787488,2528.2,2528.0,0.002]
[1751715810011,10.49316223,2528.6,2528.0,4.74805383]
[1751715810217,0.1976,2528.4,2528.2,3.95537345]
[1751715810601,0.1976,2528.4,2528.2,7.945]
[1751715811815,0.1976,2528.4,2528.2,11.90034599]
[1751715812031,0.56702143,2528.4,2528.2,11.90034599]
[1751715812742,0.56702143,2528.4,2528.2,7.945]
[1751715813310,0.36942143,2528.3,2528.2,7.945]
[1751715820049,4.32465197,2528.3,2528.1,0.002]
[1751715820240,0.36942143,2528.2,2528.1,0.002]
[1751715820440,0.36942143,2528.2,2528.1,7.946]
[1751715826662,0.37094134,2528.2,2528.1,7.946]
[1751715831680,0.37094134,2528.2,2528.1,11.90153973]
[1751715832880,0.37094134,2528.2,2528.1,7.946]
[1751715833894,0.37094134,2528.2,2528.1,11.90153973]
[1751715834258,0.37094134,2528.2,2528.1,12.68283973]
[1751715834578,0.37094134,2528.2,2528.1,12.88043973]
[1751715836992,0.37094134,2528.2,2528.1,12.09913973]
[1751715849302,0.001,2528.5,2528.2,3.95525649]
[1751715849506,0.001,2528.5,2528.3,7.94]
[1751715849507,0.36714351,2528.4,2528.3,7.94]
[1751715850072,0.36714351,2528.4,2528.3,11.89522683]
[1751715852688,0.36714351,2528.4,2528.3,7.94]
[1751715853386,0.36714351,2528.4,2528.3,11.89522683]
[1751715854016,0.36714351,2528.4,2528.3,7.94]
[1751715856620,0.36714351,2528.4,2528.2,3.95530571]
[1751715856924,0.65394351,2528.3,2528.1,0.002]
[1751715857219,0.2868,2528.3,2528.2,7.94]
[1751715857410,1.09793188,2528.3,2528.2,7.94]
[1751715858130,5.05315871,2528.3,2528.2,7.94]
[1751715859147,1.09793188,2528.3,2528.2,7.94]
[1751715860737,5.05315871,2528.3,2528.2,7.94]
[1751715860950,1.09793188,2528.3,2528.2,7.94]
[1751715861252,1.09797689,2528.3,2528.2,7.94]
[1751715862842,5.05320372,2528.3,2528.2,7.94]
[1751715863432,5.05320372,2528.3,2528.1,7.945]
[1751715863743,1.28771485,2528.2,2528.1,7.945]
[1751715863932,5.24309812,2528.2,2528.1,7.945]
[1751715865108,5.24309812,2528.2,2528.1,0.002]
[1751715865438,5.24486077,2528.2,2528.1,0.002]
[1751715865749,5.24485746,2528.2,2528.1,0.002]
[1751715866335,24.96677087,2528.2,2528.1,0.002]
[1751715867454,23.04577087,2528.2,2528.1,0.002]
[1751715867668,24.96677087,2528.2,2528.1,0.002]
[1751715871724,24.96816442,2528.2,2528.1,0.002]
[1751715882069,24.96783567,2528.2,2528.1,0.002]
[1751715883770,24.97683567,2528.2,2528.1,0.002]
[1751715895712,23.04683567,2528.2,2528.1,0.002]
[1751715895914,17.17592226,2528.2,2528.1,0.002]
[1751715897930,22.64650964,2528.2,2528.1,0.002]
[1751715898710,22.85288407,2528.2,2528.1,0.002]
[1751715901321,10.5763255,2528.2,2528.1,0.002]
[1751715901520,10.36995107,2528.2,2528.1,0.002]
[1751715903103,14.32533434,2528.2,2528.1,0.002]
[1751715904913,10.36995107,2528.2,2528.1,0.002]
[1751715907738,14.32533434,2528.2,2528.1,0.002]
[1751715908251,10.36995107,2528.2,2528.1,0.002]
[1751715908712,10.56755107,2528.2,2528.1,0.002]
[1751715910235,0.56755107,2528.2,2528.1,0.002]
[1751715910437,0.1976,2528.2,2528.1,5.62451944]
[1751715910739,0.56836135,2528.2,2528.1,5.62451944]
[1751715912214,0.37076135,2528.2,2528.1,5.62451944]
[1751715913471,0.37076135,2528.2,2528.1,0.7946]
[1751715913615,0.37051131,2528.2,2528.1,0.7946]
[1751715913811,0.37051131,2528.2,2528.1,8.7516]
[1751715916660,0.37034467,2528.2,2528.1,8.7516]
[1751715919563,0.37027064,2528.2,2528.1,8.7516]
[1751715922178,0.37027064,2528.2,2528.1,12.70713973]
[1751715923377,0.37029319,2528.2,2528.1,12.70713973]
[1751715924078,0.37029319,2528.2,2528.1,8.7516]
[1751715925357,0.37029319,2528.2,2528.1,7.959]
[1751715930968,0.56789319,2528.2,2528.1,7.959]
[1751715931316,0.1976,2528.2,2528.1,7.959]
[1751715931617,0.56821665,2528.2,2528.1,7.959]
[1751715932990,0.56821665,2528.2,2528.1,7.954]
[1751715934460,0.5683205,2528.2,2528.1,7.954]
[1751715937589,0.56848883,2528.2,2528.1,7.954]
[1751715939862,0.56848883,2528.2,2528.1,11.90953973]
[1751715940303,0.56875395,2528.2,2528.1,11.90953973]
[1751715941015,0.56875395,2528.2,2528.1,7.954]
[1751715941624,0.56875395,2528.2,2528.1,11.90953973]
[1751715941828,0.56875395,2528.2,2528.1,12.73693973]
[1751715943128,0.37115395,2528.2,2528.1,12.73693973]
[1751715945945,0.37115395,2528.2,2528.1,8.7814]
[1751715946324,0.37117705,2528.2,2528.1,8.7814]
[1751715947157,0.37117705,2528.2,2528.1,12.73693973]
[1751715948945,0.37117705,2528.2,2528.1,7.951]
[1751715950243,0.37117705,2528.2,2528.1,11.90653973]
[1751715952047,0.37117705,2528.2,2528.1,7.951]
[1751715955354,0.37117705,2528.2,2528.1,7.95]
[1751715956458,0.37117705,2528.2,2528.1,12.72263973]
[1751715956651,0.37117705,2528.2,2528.1,0.002]
[1751715956821,0.37117705,2528.2,2528.1,7.949]
[1751715957454,0.37117705,2528.2,2528.1,0.002]
[1751715957755,0.37117705,2528.2,2528.1,7.95]
[1751715958273,0.37117705,2528.2,2528.1,0.002]
[1751715958469,0.56877705,2528.2,2528.1,7.95]
[1751715959257,1.56822837,2528.2,2528.1,0.002]
[1751715959426,1.56822837,2528.2,2528.1,7.95]
[1751715960233,0.56877705,2528.2,2528.1,7.95]
[1751715966572,0.56877705,2528.2,2528.1,7.948]
[1751715967059,0.56877705,2528.2,2528.1,11.90353973]
[1751715970075,0.56877705,2528.2,2528.1,7.948]
[1751715972877,0.56877705,2528.2,2528.1,11.90353973]
[1751715973981,0.56877705,2528.2,2528.1,7.948]
[1751715974149,0.56877705,2528.2,2528.1,11.90353973]
[1751715975269,0.56877705,2528.2,2528.1,7.948]
[1751715977778,0.56877705,2528.2,2528.1,11.90353973]
[1751715980282,0.56877705,2528.2,2528.1,11.90353973]
[1751715981292,0.56877705,2528.2,2528.1,7.948]
[1751715983663,0.56881919,2528.2,2528.1,7.948]
[1751715986482,0.56881919,2528.2,2528.1,11.90353973]
[1751715987487,0.56881919,2528.2,2528.1,7.948]
[1751715991371,0.56881919,2528.2,2528.1,7.946]
[1751715992287,0.56882775,2528.2,2528.1,7.946]
[1751715997595,0.56882775,2528.2,2528.1,11.90153973]
[1751715999497,0.56882775,2528.2,2528.1,7.946]
[1751716001201,0.56882775,2528.2,2528.1,11.90153973]
[1751716001514,0.1986,2528.5,2528.2,3.95524829]
[1751716001798,0.37125579,2528.4,2528.3,7.944]
[1751716007974,0.37125579,2528.4,2528.3,8.7386]
[1751716011491,0.37125579,2528.4,2528.3,7.944]
[1751716014081,0.37125579,2528.4,2528.1,3.95752395]
[1751716014281,0.37125579,2528.3,2528.2,7.944]
[1751716015712,0.37125579,2528.3,2528.1,3.95752395]
[1751716016010,0.37125579,2528.2,2528.1,3.95752395]
[1751716016210,0.3710367,2528.2,2528.1,11.90152395]
[1751716017512,0.3710367,2528.2,2528.1,3.95752395]
[1751716017819,0.3710367,2528.2,2528.1,11.90152395]
[1751716020215,0.3710367,2528.2,2528.1,3.95752395]
[1751716020410,0.3710367,2528.2,2528.1,11.90152395]
[1751716021420,0.3710367,2528.2,2528.1,7.946]
[1751716021921,0.5686367,2528.2,2528.1,7.946]
[1751716026042,0.5686367,2528.2,2528.1,0.002]
[1751716026336,0.5686367,2528.2,2528.1,7.946]
[1751716032819,0.5686367,2528.2,2528.1,0.002]
[1751716033026,0.5686367,2528.2,2528.1,7.946]
[1751716033319,0.5686367,2528.2,2528.1,0.002]
[1751716033520,0.5686367,2528.2,2528.1,7.946]
[1751716036100,0.5686367,2528.2,2528.1,0.002]
[1751716036500,0.5686367,2528.2,2528.1,7.946]
[1751716037125,0.5686367,2528.2,2528.1,0.002]
[1751716037333,0.5686367,2528.2,2528.1,7.946]
[1751716044110,0.5686367,2528.2,2528.1,11.90153973]
[1751716062472,0.1976,2528.2,2528.1,11.90153973]
[1751716062640,0.56768981,2528.2,2528.1,11.90153973]
[1751716062974,0.56768976,2528.2,2528.1,11.90153973]
[1751716064367,0.37008976,2528.2,2528.1,12.67663973]
[1751716068344,0.36997331,2528.2,2528.1,12.67663973]
[1751716074101,0.1976,2528.4,2528.2,3.95535538]
[1751716074261,0.1976,2528.4,2528.3,7.943]
[1751716074461,0.56745655,2528.4,2528.3,7.943]
[1751716075295,0.1976,2528.4,2528.3,7.943]
[1751716075474,0.56745989,2528.4,2528.3,7.943]
[1751716079894,1.04823481,2528.4,2528.3,7.943]
[1751716080396,1.04823481,2528.4,2528.1,0.002]
[1751716080697,0.36962615,2528.3,2528.2,7.943]
[1751716081670,0.36962615,2528.3,2528.2,11.89838327]
[1751716094686,0.36962615,2528.3,2528.2,7.943]
[1751716094997,0.36962615,2528.3,2528.2,11.89838327]
[1751716095502,0.36881799,2528.3,2528.2,11.89838327]
[1751716096903,0.36881799,2528.3,2528.2,11.89738327]
[1751716097974,0.36881799,2528.3,2528.2,3.95538327]
[1751716098287,0.36854717,2528.3,2528.2,11.89738327]
[1751716099302,0.36854717,2528.3,2528.1,0.1996]
[1751716099607,0.36854717,2528.2,2528.1,0.002]
[1751716099782,1.00090063,2528.2,2528.1,0.002]
[1751716100188,1.00090063,2528.2,2528.1,7.944]
[1751716101506,1.00091525,2528.2,2528.1,7.944]
[1751716104113,1.00089674,2528.2,2528.1,7.944]
[1751716104308,1.00089674,2528.2,2528.1,0.002]
[1751716104513,1.00089674,2528.2,2528.1,7.944]
[1751716105709,4.95628001,2528.2,2528.1,0.002]
[1751716106025,4.95628001,2528.2,2528.1,7.944]
[1751716107077,4.95880974,2528.2,2528.1,7.944]
[1751716108110,1.00342647,2528.2,2528.1,7.944]
[1751716108710,4.95880974,2528.2,2528.1,7.944]
[1751716110619,1.00342647,2528.2,2528.1,7.944]
[1751716112819,4.95880974,2528.2,2528.1,0.002]
[1751716113021,4.95880974,2528.2,2528.1,7.944]
[1751716115017,4.95880974,2528.2,2528.1,0.002]
[1751716115392,4.95880974,2528.2,2528.1,7.944]
[1751716117011,10.42939712,2528.2,2528.1,0.002]
[1751716117216,10.71619712,2528.2,2528.1,7.944]
[1751716117921,10.71619712,2528.2,2528.1,0.002]
[1751716119027,10.71244162,2528.2,2528.1,0.002]
[1751716121929,20.71556963,2528.2,2528.1,0.002]
[1751716122126,22.84397558,2528.2,2528.1,0.002]
[1751716122429,50.26292711,2528.1,2528.0,1e-08]
[1751716122630,53.33305316,2528.1,2528.0,1e-08]
[1751716122818,3.9563222,2527.6,2527.5,0.002]
[1751716123008,22.5561551,2527.6,2527.5,0.002]
[1751716123705,20.93114038,2527.6,2527.5,0.002]
[1751716124023,33.50736706,2527.6,2527.5,0.002]
[1751716125813,35.564136,2527.6,2527.5,0.002]
[1751716126016,25.692136,2527.6,2527.5,0.002]
[1751716126216,24.84515072,2527.6,2527.5,0.002]
[1751716126436,26.77015072,2527.6,2527.5,0.002]
[1751716127835,26.76899866,2527.6,2527.5,0.002]
[1751716130340,34.72199866,2527.6,2527.5,0.002]
[1751716131420,35.27199866,2527.6,2527.5,0.002]
[1751716141835,17.02984234,2527.6,2527.5,0.002]
[1751716142032,18.95584234,2527.6,2527.5,0.002]
[1751716144056,17.02984234,2527.6,2527.5,0.002]
[1751716144356,18.95584234,2527.6,2527.5,0.002]
[1751716144559,18.95592831,2527.6,2527.5,0.002]
[1751716145628,17.02992831,2527.6,2527.5,0.002]
[1751716145829,18.95592831,2527.6,2527.5,0.002]
[1751716148170,16.25170163,2527.6,2527.5,0.002]
[1751716150268,10.36937943,2527.6,2527.5,0.812]
[1751716150569,10.56697943,2527.6,2527.5,0.812]
[1751716153463,14.52330163,2527.6,2527.5,0.812]
[1751716154443,10.56697943,2527.6,2527.5,0.812]
[1751716157579,14.52330163,2527.6,2527.5,0.812]
[1751716157884,10.56697943,2527.6,2527.5,0.812]
[1751716158358,0.56697943,2527.6,2527.5,0.812]
[1751716159350,0.56797468,2527.6,2527.5,4.76847873]
[1751716159550,0.56797468,2527.6,2527.5,0.812]
[1751716160151,0.56797468,2527.6,2527.5,4.76847873]
[1751716161047,0.56797468,2527.6,2527.5,0.812]
[1751716166061,0.56797468,2527.6,2527.5,4.76847873]
[1751716167262,0.56797468,2527.6,2527.5,0.812]
[1751716171065,0.56724197,2527.6,2527.5,0.812]
[1751716172992,0.56735362,2527.6,2527.5,0.812]
[1751716176114,0.56735362,2527.6,2527.5,0.002]
[1751716178370,4.52367582,2527.6,2527.5,0.002]
[1751716180200,4.52495776,2527.6,2527.5,0.002]
[1751716181198,0.56863556,2527.6,2527.5,0.002]
[1751716183878,4.52495776,2527.6,2527.5,0.002]
[1751716185015,0.56863556,2527.6,2527.5,0.002]
[1751716194829,0.56882148,2527.6,2527.5,0.002]
[1751716199318,0.56882148,2527.6,2527.5,4.71597873]
[1751716200205,0.56882148,2527.6,2527.5,0.7595]
[1751716201935,0.56882148,2527.6,2527.5,4.71597873]
[1751716203110,0.56882148,2527.6,2527.5,0.7595]
[1751716206030,0.56882148,2527.6,2527.5,4.71597873]
[1751716211146,0.56882148,2527.6,2527.5,0.7595]
[1751716211528,0.56879185,2527.6,2527.5,0.7595]
[1751716213103,0.56879185,2527.6,2527.5,0.002]
[1751716214431,0.56879843,2527.6,2527.5,7.947]
[1751716214609,1.96400656,2527.6,2527.5,7.947]
[1751716215636,5.92032876,2527.6,2527.5,7.947]
[1751716216148,1.96400656,2527.6,2527.5,7.947]
[1751716217440,1.96402443,2527.6,2527.5,7.947]
[1751716219641,5.92034663,2527.6,2527.5,7.947]
[1751716220312,1.96402443,2527.6,2527.5,7.947]
[1751716220611,5.92034663,2527.6,2527.5,7.947]
[1751716223236,1.96402443,2527.6,2527.5,7.947]
[1751716224649,5.92034663,2527.6,2527.5,7.947]
[1751716224955,5.92034663,2527.6,2527.5,0.002]
[1751716229528,6.20714663,2527.6,2527.5,0.002]
[1751716233140,5.83593033,2527.6,2527.5,0.002]
[1751716233341,6.20705796,2527.6,2527.5,0.002]
[1751716235756,11.68131224,2527.6,2527.5,0.002]
[1751716236058,21.39451224,2527.6,2527.5,0.002]
[1751716236258,21.88774405,2527.6,2527.5,0.002]
[1751716240970,22.06661642,2527.6,2527.5,0.002]
[1751716241266,22.43729722,2527.6,2527.5,1.591e-05]
[1751716243264,30.38429722,2527.6,2527.5,1.591e-05]
[1751716243639,60.38429722,2527.6,2527.5,1.591e-05]
[1751716247162,3.95679183,2527.3,2527.2,0.0430937]
[1751716247347,23.54475237,2527.3,2527.2,0.0430937]
[1751716252650,23.17407157,2527.3,2527.2,0.0430937]
[1751716253050,23.54423492,2527.3,2527.2,0.0430937]
[1751716253471,23.54423776,2527.3,2527.2,0.0430937]
[1751716256480,23.75069472,2527.3,2527.2,0.0430937]
[1751716263871,3.95710498,2527.1,2527.0,0.002]
[1751716264068,3.95710498,2527.1,2526.7,0.8747937]
[1751716264069,3.95757479,2526.8,2526.7,0.0430937]
[1751716264273,19.80199526,2526.8,2526.7,0.0430937]
[1751716274893,20.08879526,2526.8,2526.7,0.0430937]
[1751716275597,20.08940856,2526.8,2526.7,0.0430937]
[1751716275767,21.48461669,2526.8,2526.7,0.0430937]
[1751716276889,21.6911205,2526.8,2526.7,0.0430937]
[1751716277792,22.2411205,2526.8,2526.7,0.0004955]